[Event "Titled Tuesday Blitz September 21 2021"]
[White "Vivas Zamora, Fabian Ernesto"]
[Black "Boyer, Mahel"]
[WhiteFideId "3902480"]
[BlackFideId "45102422"]
[WhiteElo "1966"]
[BlackElo "2328"]
[Result "0-1"]
[Round "03"]
[TimeControl "180+1"]
[Date "2021.09.21"]
[WhiteClock "0:00:02"]
[BlackClock "0:01:18"]

1. c4 {[%clk 0:02:58]}  e6 {[%clk 0:03:00]} 2. Nf3 {[%clk 0:02:56]}  d5 {[%clk 0:03:01]} 3. b3 {[%clk 0:02:56]}  Qf6 {[%clk 0:02:57]} 4. Nc3 {[%clk 0:02:54]}  d4 {[%clk 0:02:44]} 5. Nb5 {[%clk 0:02:46]}  Qd8 {[%clk 0:02:45]} 6. Nbxd4 {[%clk 0:02:42]}  e5 {[%clk 0:02:45]} 7. Nc2 {[%clk 0:02:32]}  e4 {[%clk 0:02:44]} 8. Nfd4 {[%clk 0:02:15]}  a6 {[%clk 0:02:45]} 9. e3 {[%clk 0:01:53]}  c5 {[%clk 0:02:45]} 10. Ne2 {[%clk 0:01:53]}  Bf5 {[%clk 0:02:21]} 11. Bb2 {[%clk 0:01:22]}  Nc6 {[%clk 0:01:49]} 12. Ng3 {[%clk 0:01:21]}  Bg6 {[%clk 0:01:50]} 13. h4 {[%clk 0:01:19]}  h5 {[%clk 0:01:49]} 14. Be2 {[%clk 0:01:16]}  Nf6 {[%clk 0:01:50]} 15. Bxf6 {[%clk 0:01:06]}  Qxf6 {[%clk 0:01:50]} 16. Bxh5 {[%clk 0:01:05]}  Ne5 {[%clk 0:01:33]} 17. Be2 {[%clk 0:00:18]}  Rxh4 {[%clk 0:01:19]} 18. Rxh4 {[%clk 0:00:07]}  Qxh4 {[%clk 0:01:20]} 19. Kf1 {[%clk 0:00:06]}  O-O-O {[%clk 0:01:17]} 20. Ne1 {[%clk 0:00:05]}  Be7 {[%clk 0:01:17]} 21. Rb1 {[%clk 0:00:04]}  Rh8 {[%clk 0:01:17]} 22. Kg1 {[%clk 0:00:03]}  Qh2+ {[%clk 0:01:16]} 23. Kf1 {[%clk 0:00:02]}  Qh1+ {[%clk 0:01:17]} 24. Nxh1 {[%clk 0:00:02]}  Rxh1# {[%clk 0:01:18]} 0-1


[Site "https://www.chess.com"]

[Event "Titled Tuesday Blitz September 21 2021"]
[White "Weetik, Vjacheslav"]
[Black "Vrencian, Lehel"]
[WhiteFideId "4153472"]
[BlackFideId "1230999"]
[WhiteElo "2469"]
[BlackElo "2058"]
[Result "1-0"]
[Round "03"]
[TimeControl "180+1"]
[Date "2021.09.21"]
[WhiteClock "0:00:59"]
[BlackClock "0:01:11"]

1. e4 {[%clk 0:03:00]}  c5 {[%clk 0:02:59]} 2. Nf3 {[%clk 0:03:00]}  e6 {[%clk 0:02:59]} 3. d4 {[%clk 0:03:01]}  cxd4 {[%clk 0:03:00]} 4. Nxd4 {[%clk 0:03:01]}  Nf6 {[%clk 0:03:01]} 5. Nc3 {[%clk 0:03:02]}  d6 {[%clk 0:03:01]} 6. g4 {[%clk 0:03:00]}  h6 {[%clk 0:03:01]} 7. Rg1 {[%clk 0:02:45]}  g5 {[%clk 0:02:59]} 8. h4 {[%clk 0:02:39]}  Nfd7 {[%clk 0:02:58]} 9. hxg5 {[%clk 0:02:26]}  hxg5 {[%clk 0:02:59]} 10. Be3 {[%clk 0:02:27]}  Ne5 {[%clk 0:02:56]} 11. Qd2 {[%clk 0:02:17]}  Be7 {[%clk 0:02:55]} 12. O-O-O {[%clk 0:02:13]}  a6 {[%clk 0:02:53]} 13. f4 {[%clk 0:02:07]}  gxf4 {[%clk 0:02:52]} 14. Bxf4 {[%clk 0:02:08]}  Nbd7 {[%clk 0:02:46]} 15. g5 {[%clk 0:01:55]}  b5 {[%clk 0:02:43]} 16. g6 {[%clk 0:01:49]}  Nxg6 {[%clk 0:02:31]} 17. Rxg6 {[%clk 0:01:48]}  fxg6 {[%clk 0:02:30]} 18. Nxe6 {[%clk 0:01:48]}  Qa5 {[%clk 0:02:28]} 19. Bxd6 {[%clk 0:01:16]}  Bxd6 {[%clk 0:01:26]} 20. Qxd6 {[%clk 0:01:15]}  Ra7 {[%clk 0:01:25]} 21. Nd5 {[%clk 0:01:10]}  Rh7 {[%clk 0:01:24]} 22. Nf6+ {[%clk 0:00:59]}  Nxf6 {[%clk 0:01:11]} 23. Qf8# {[%clk 0:00:59]} 1-0


[Site "https://www.chess.com"]

[Event "Titled Tuesday Blitz September 21 2021"]
[White "Xiong, Jeffery"]
[Black "Anuj Shrivatri"]
[WhiteFideId "2047640"]
[BlackFideId "35070924"]
[WhiteElo "2699"]
[BlackElo "2038"]
[Result "1-0"]
[Round "03"]
[TimeControl "180+1"]
[Date "2021.09.21"]
[WhiteClock "0:00:53"]
[BlackClock "0:00:01"]

1. d4 {[%clk 0:03:00]}  Nf6 {[%clk 0:02:47]} 2. Nf3 {[%clk 0:03:00]}  g6 {[%clk 0:02:47]} 3. Nbd2 {[%clk 0:03:00]}  d5 {[%clk 0:02:42]} 4. b4 {[%clk 0:03:00]}  Bg7 {[%clk 0:02:42]} 5. e3 {[%clk 0:03:01]}  O-O {[%clk 0:02:42]} 6. Be2 {[%clk 0:03:01]}  a5 {[%clk 0:02:42]} 7. b5 {[%clk 0:03:02]}  c5 {[%clk 0:02:42]} 8. bxc6 {[%clk 0:03:03]}  Nxc6 {[%clk 0:02:42]} 9. O-O {[%clk 0:03:04]}  Bf5 {[%clk 0:02:34]} 10. c3 {[%clk 0:03:04]}  Re8 {[%clk 0:02:29]} 11. Ba3 {[%clk 0:03:04]}  e5 {[%clk 0:02:28]} 12. dxe5 {[%clk 0:03:05]}  Nxe5 {[%clk 0:02:25]} 13. Nxe5 {[%clk 0:03:06]}  Rxe5 {[%clk 0:02:23]} 14. Nf3 {[%clk 0:03:07]}  Re8 {[%clk 0:02:23]} 15. Nd4 {[%clk 0:03:07]}  Bd7 {[%clk 0:02:23]} 16. Rc1 {[%clk 0:03:06]}  Qb6 {[%clk 0:01:23]} 17. c4 {[%clk 0:03:06]}  dxc4 {[%clk 0:01:23]} 18. Bxc4 {[%clk 0:03:07]}  Ng4 {[%clk 0:01:06]} 19. Bd5 {[%clk 0:02:14]}  Rab8 {[%clk 0:00:49]} 20. Qb3 {[%clk 0:01:48]}  Qxb3 {[%clk 0:00:46]} 21. axb3 {[%clk 0:01:49]}  Nf6 {[%clk 0:00:44]} 22. Bf3 {[%clk 0:01:47]}  Bf8 {[%clk 0:00:40]} 23. Bb2 {[%clk 0:01:37]}  Bd6 {[%clk 0:00:39]} 24. Ra1 {[%clk 0:01:12]}  Bb4 {[%clk 0:00:32]} 25. Nc2 {[%clk 0:01:11]}  Re6 {[%clk 0:00:22]} 26. Rfd1 {[%clk 0:01:08]}  Bc6 {[%clk 0:00:21]} 27. Nxb4 {[%clk 0:01:08]}  axb4 {[%clk 0:00:21]} 28. Be2 {[%clk 0:01:08]}  Ne8 {[%clk 0:00:16]} 29. Rd4 {[%clk 0:01:07]}  f6 {[%clk 0:00:13]} 30. Bc4 {[%clk 0:01:07]}  Kf7 {[%clk 0:00:13]} 31. Rad1 {[%clk 0:01:01]}  Ke7 {[%clk 0:00:13]} 32. Bxe6 {[%clk 0:01:01]}  Kxe6 {[%clk 0:00:14]} 33. Rxb4 {[%clk 0:01:02]}  Nd6 {[%clk 0:00:12]} 34. Bxf6 {[%clk 0:01:02]}  Ne4 {[%clk 0:00:09]} 35. Bb2 {[%clk 0:01:01]}  Rf8 {[%clk 0:00:09]} 36. f3 {[%clk 0:01:02]}  Nd6 {[%clk 0:00:09]} 37. e4 {[%clk 0:01:02]}  Nf7 {[%clk 0:00:09]} 38. Rbd4 {[%clk 0:01:00]}  Ra8 {[%clk 0:00:08]} 39. Ra1 {[%clk 0:01:00]}  Rc8 {[%clk 0:00:08]} 40. Kf2 {[%clk 0:01:00]}  Bb5 {[%clk 0:00:07]} 41. Rd2 {[%clk 0:01:00]}  h5 {[%clk 0:00:06]} 42. Rc1 {[%clk 0:01:00]}  Bc6 {[%clk 0:00:06]} 43. h4 {[%clk 0:00:59]}  Ra8 {[%clk 0:00:06]} 44. Rc5 {[%clk 0:00:57]}  Ra2 {[%clk 0:00:05]} 45. Ke3 {[%clk 0:00:57]}  Nh6 {[%clk 0:00:03]} 46. Kf4 {[%clk 0:00:56]}  Nf7 {[%clk 0:00:02]} 47. b4 {[%clk 0:00:56]}  Bd7 {[%clk 0:00:01]} 48. b5 {[%clk 0:00:55]}  b6 {[%clk 0:00:01]} 49. Rcd5 {[%clk 0:00:53]} 1-0


[Site "https://www.chess.com"]

[Event "Titled Tuesday Blitz September 21 2021"]
[White "Yaniuk, Volodymyr"]
[Black "Priasmoro, Novendra"]
[WhiteFideId "14133083"]
[BlackFideId "7105029"]
[WhiteElo "2207"]
[BlackElo "2309"]
[Result "1-0"]
[Round "03"]
[TimeControl "180+1"]
[Date "2021.09.21"]
[WhiteClock "0:00:10"]
[BlackClock "0:00:08"]

1. d4 {[%clk 0:03:00]}  Nf6 {[%clk 0:02:59]} 2. c4 {[%clk 0:03:00]}  g6 {[%clk 0:03:00]} 3. Nc3 {[%clk 0:02:59]}  d5 {[%clk 0:03:00]} 4. Nf3 {[%clk 0:02:57]}  Bg7 {[%clk 0:03:00]} 5. Bg5 {[%clk 0:02:54]}  Ne4 {[%clk 0:02:57]} 6. cxd5 {[%clk 0:02:52]}  Nxg5 {[%clk 0:02:57]} 7. Nxg5 {[%clk 0:02:53]}  e6 {[%clk 0:02:53]} 8. Nf3 {[%clk 0:02:53]}  exd5 {[%clk 0:02:52]} 9. e3 {[%clk 0:02:53]}  O-O {[%clk 0:02:53]} 10. Bd3 {[%clk 0:02:46]}  c6 {[%clk 0:02:46]} 11. O-O {[%clk 0:02:46]}  Nd7 {[%clk 0:02:45]} 12. b4 {[%clk 0:02:41]}  Re8 {[%clk 0:02:46]} 13. a4 {[%clk 0:02:38]}  Nf6 {[%clk 0:02:46]} 14. Qc2 {[%clk 0:02:38]}  Qe7 {[%clk 0:02:45]} 15. Rab1 {[%clk 0:02:38]}  Ne4 {[%clk 0:02:45]} 16. Bxe4 {[%clk 0:02:36]}  dxe4 {[%clk 0:02:46]} 17. Nd2 {[%clk 0:02:36]}  Bf5 {[%clk 0:02:43]} 18. Rfc1 {[%clk 0:02:34]}  Rac8 {[%clk 0:02:43]} 19. Ne2 {[%clk 0:02:33]}  h5 {[%clk 0:02:40]} 20. Ng3 {[%clk 0:02:32]}  Bd7 {[%clk 0:02:23]} 21. Qxe4 {[%clk 0:02:21]}  Qg5 {[%clk 0:02:12]} 22. Nf3 {[%clk 0:02:10]}  Qf6 {[%clk 0:02:03]} 23. Qh4 {[%clk 0:01:51]}  Qe6 {[%clk 0:01:46]} 24. Rb2 {[%clk 0:01:32]}  a5 {[%clk 0:01:34]} 25. bxa5 {[%clk 0:01:26]}  c5 {[%clk 0:01:34]} 26. Rbc2 {[%clk 0:01:19]}  c4 {[%clk 0:01:29]} 27. Ne5 {[%clk 0:01:07]}  Bxa4 {[%clk 0:01:10]} 28. Rxc4 {[%clk 0:00:49]}  Bf6 {[%clk 0:01:10]} 29. Qe4 {[%clk 0:00:35]}  Rxc4 {[%clk 0:00:59]} 30. Rxc4 {[%clk 0:00:36]}  Bc6 {[%clk 0:00:51]} 31. Nxc6 {[%clk 0:00:27]}  Qxc4 {[%clk 0:00:10]} 32. Qxe8+ {[%clk 0:00:24]}  Kg7 {[%clk 0:00:10]} 33. Ne7 {[%clk 0:00:18]}  h4 {[%clk 0:00:07]} 34. Nf1 {[%clk 0:00:18]}  h3 {[%clk 0:00:07]} 35. Qg8+ {[%clk 0:00:15]}  Kh6 {[%clk 0:00:07]} 36. Qe8 {[%clk 0:00:11]}  hxg2 {[%clk 0:00:07]} 37. Kxg2 {[%clk 0:00:12]}  Kg7 {[%clk 0:00:03]} 38. Qd7 {[%clk 0:00:10]}  Qb4 {[%clk 0:00:03]} 39. Nd5 {[%clk 0:00:08]}  Qb1 {[%clk 0:00:03]} 40. Nxf6 {[%clk 0:00:08]}  Kxf6 {[%clk 0:00:04]} 41. Qd6+ {[%clk 0:00:07]}  Kg7 {[%clk 0:00:04]} 42. Qe5+ {[%clk 0:00:07]}  Kg8 {[%clk 0:00:05]} 43. d5 {[%clk 0:00:07]}  Qb5 {[%clk 0:00:05]} 44. Qd4 {[%clk 0:00:06]}  Qxa5 {[%clk 0:00:05]} 45. d6 {[%clk 0:00:06]}  Qd8 {[%clk 0:00:05]} 46. d7 {[%clk 0:00:06]}  Kf8 {[%clk 0:00:06]} 47. Qd6+ {[%clk 0:00:06]}  Kg7 {[%clk 0:00:06]} 48. Ng3 {[%clk 0:00:06]}  b5 {[%clk 0:00:06]} 49. Qe5+ {[%clk 0:00:05]}  Kg8 {[%clk 0:00:06]} 50. Qe8+ {[%clk 0:00:06]}  Qxe8 {[%clk 0:00:04]} 51. dxe8=Q+ {[%clk 0:00:06]}  Kg7 {[%clk 0:00:05]} 52. Qe5+ {[%clk 0:00:06]}  f6 {[%clk 0:00:05]} 53. Qxb5 {[%clk 0:00:07]}  g5 {[%clk 0:00:06]} 54. Qb2 {[%clk 0:00:08]}  Kg6 {[%clk 0:00:06]} 55. Ne4 {[%clk 0:00:09]}  g4 {[%clk 0:00:07]} 56. Qxf6+ {[%clk 0:00:09]}  Kh5 {[%clk 0:00:08]} 57. Qg5# {[%clk 0:00:10]} 1-0


[Site "https://www.chess.com"]

[Event "Titled Tuesday Blitz September 21 2021"]
[White "Yeletsky, Ivan"]
[Black "Bendayan Claros, Aaron"]
[WhiteFideId "24180327"]
[BlackFideId "3803392"]
[WhiteElo "2344"]
[BlackElo "2133"]
[Result "1-0"]
[Round "03"]
[TimeControl "180+1"]
[Date "2021.09.21"]
[WhiteClock "0:01:07"]
[BlackClock "0:00:07"]

1. e4 {[%clk 0:03:00]}  c6 {[%clk 0:02:58]} 2. d4 {[%clk 0:02:59]}  d5 {[%clk 0:02:59]} 3. Nc3 {[%clk 0:02:59]}  dxe4 {[%clk 0:02:59]} 4. Nxe4 {[%clk 0:03:00]}  Nf6 {[%clk 0:02:59]} 5. Qd3 {[%clk 0:02:58]}  Nxe4 {[%clk 0:02:58]} 6. Qxe4 {[%clk 0:02:59]}  Nd7 {[%clk 0:02:58]} 7. Nf3 {[%clk 0:02:58]}  Nf6 {[%clk 0:02:58]} 8. Qe5 {[%clk 0:02:59]}  Bg4 {[%clk 0:02:54]} 9. Be2 {[%clk 0:02:44]}  e6 {[%clk 0:02:53]} 10. Bf4 {[%clk 0:02:41]}  Be7 {[%clk 0:02:49]} 11. h3 {[%clk 0:02:41]}  Bf5 {[%clk 0:02:47]} 12. c3 {[%clk 0:02:40]}  Qd5 {[%clk 0:02:44]} 13. O-O {[%clk 0:02:38]}  Qxe5 {[%clk 0:02:38]} 14. Nxe5 {[%clk 0:02:38]}  O-O {[%clk 0:02:37]} 15. a4 {[%clk 0:02:38]}  Rad8 {[%clk 0:02:35]} 16. a5 {[%clk 0:02:35]}  a6 {[%clk 0:02:35]} 17. b4 {[%clk 0:02:25]}  Nd5 {[%clk 0:02:33]} 18. Bd2 {[%clk 0:02:25]}  Bd6 {[%clk 0:02:26]} 19. Nc4 {[%clk 0:02:13]}  Bf4 {[%clk 0:02:16]} 20. Rac1 {[%clk 0:02:10]}  Bxd2 {[%clk 0:02:01]} 21. Nxd2 {[%clk 0:02:11]}  Rd7 {[%clk 0:02:01]} 22. Bf3 {[%clk 0:02:11]}  Rfd8 {[%clk 0:02:01]} 23. Nb3 {[%clk 0:02:11]}  Nf6 {[%clk 0:01:48]} 24. Nc5 {[%clk 0:02:07]}  Rc7 {[%clk 0:01:46]} 25. Rfe1 {[%clk 0:02:07]}  Nd7 {[%clk 0:01:45]} 26. h4 {[%clk 0:02:02]}  Nxc5 {[%clk 0:01:43]} 27. bxc5 {[%clk 0:02:02]}  Bd3 {[%clk 0:01:38]} 28. Re3 {[%clk 0:01:59]}  Bc4 {[%clk 0:01:38]} 29. Rb1 {[%clk 0:01:57]}  g6 {[%clk 0:01:37]} 30. Rb4 {[%clk 0:01:57]}  Ba2 {[%clk 0:01:21]} 31. Re1 {[%clk 0:01:48]}  f6 {[%clk 0:01:14]} 32. g4 {[%clk 0:01:27]}  Kf7 {[%clk 0:01:13]} 33. g5 {[%clk 0:01:26]}  Re7 {[%clk 0:00:59]} 34. gxf6 {[%clk 0:01:17]}  Kxf6 {[%clk 0:01:00]} 35. Re5 {[%clk 0:01:17]}  h5 {[%clk 0:00:50]} 36. Kh2 {[%clk 0:01:16]}  Kg7 {[%clk 0:00:20]} 37. Be2 {[%clk 0:01:16]}  Rf8 {[%clk 0:00:18]} 38. Kg3 {[%clk 0:01:15]}  Rf5 {[%clk 0:00:14]} 39. f3 {[%clk 0:01:05]}  Rxe5 {[%clk 0:00:09]} 40. dxe5 {[%clk 0:01:06]}  Rd7 {[%clk 0:00:09]} 41. Rb2 {[%clk 0:01:06]}  Bd5 {[%clk 0:00:07]} 42. c4 {[%clk 0:01:07]} 1-0


[Site "https://www.chess.com"]

[Event "Titled Tuesday Blitz September 21 2021"]
[White "Yordanov, Nikolay Plamenov"]
[Black "Vlassov, Nikolai"]
[WhiteFideId "2907445"]
[BlackFideId "4103360"]
[WhiteElo "2248"]
[BlackElo "2407"]
[Result "0-1"]
[Round "03"]
[TimeControl "180+1"]
[Date "2021.09.21"]
[WhiteClock "0:00:49"]
[BlackClock "0:01:10"]

1. d4 {[%clk 0:03:00]}  Nf6 {[%clk 0:02:59]} 2. Bf4 {[%clk 0:03:01]}  g6 {[%clk 0:02:58]} 3. e3 {[%clk 0:03:01]}  Bg7 {[%clk 0:02:58]} 4. h3 {[%clk 0:03:02]}  O-O {[%clk 0:02:58]} 5. Nf3 {[%clk 0:03:02]}  d6 {[%clk 0:02:58]} 6. Be2 {[%clk 0:03:02]}  c5 {[%clk 0:02:59]} 7. O-O {[%clk 0:03:02]}  cxd4 {[%clk 0:02:57]} 8. exd4 {[%clk 0:03:02]}  Qb6 {[%clk 0:02:57]} 9. Qc1 {[%clk 0:02:52]}  Nc6 {[%clk 0:02:57]} 10. c3 {[%clk 0:02:52]}  Re8 {[%clk 0:02:49]} 11. Na3 {[%clk 0:02:48]}  e5 {[%clk 0:02:38]} 12. Nc4 {[%clk 0:02:43]}  Qc7 {[%clk 0:02:38]} 13. dxe5 {[%clk 0:02:43]}  dxe5 {[%clk 0:02:39]} 14. Bh6 {[%clk 0:02:22]}  e4 {[%clk 0:02:32]} 15. Bxg7 {[%clk 0:02:03]}  Kxg7 {[%clk 0:02:25]} 16. Nh2 {[%clk 0:01:49]}  b5 {[%clk 0:02:22]} 17. Ne3 {[%clk 0:01:49]}  b4 {[%clk 0:02:23]} 18. cxb4 {[%clk 0:01:47]}  Re7 {[%clk 0:02:16]} 19. a3 {[%clk 0:01:45]}  Nd4 {[%clk 0:02:14]} 20. Qd2 {[%clk 0:01:40]}  Nb3 {[%clk 0:02:12]} 21. Qe1 {[%clk 0:01:32]}  Nxa1 {[%clk 0:02:09]} 22. Qxa1 {[%clk 0:01:33]}  a5 {[%clk 0:02:09]} 23. bxa5 {[%clk 0:01:31]}  Rxa5 {[%clk 0:02:03]} 24. b4 {[%clk 0:01:31]}  Ra8 {[%clk 0:01:58]} 25. Nhg4 {[%clk 0:01:31]}  Bxg4 {[%clk 0:01:48]} 26. Nxg4 {[%clk 0:01:29]}  Re6 {[%clk 0:01:46]} 27. Rc1 {[%clk 0:01:26]}  Qa7 {[%clk 0:01:34]} 28. Bc4 {[%clk 0:01:19]}  Rd6 {[%clk 0:01:24]} 29. Nxf6 {[%clk 0:01:15]}  Rxf6 {[%clk 0:01:24]} 30. Rf1 {[%clk 0:00:56]}  Qxa3 {[%clk 0:01:22]} 31. Qb1 {[%clk 0:00:50]}  e3 {[%clk 0:01:18]} 32. fxe3 {[%clk 0:00:49]}  Qxe3+ {[%clk 0:01:16]} 33. Kh1 {[%clk 0:00:50]}  Rxf1+ {[%clk 0:01:15]} 34. Bxf1 {[%clk 0:00:50]}  Qd4 {[%clk 0:01:11]} 35. b5 {[%clk 0:00:49]}  Ra1 {[%clk 0:01:10]} 0-1


[Site "https://www.chess.com"]

[Event "Titled Tuesday Blitz September 21 2021"]
[White "Al-Tarboush, Ward"]
[Black "Arabidze, Meri"]
[WhiteFideId "7601450"]
[BlackFideId "13604040"]
[WhiteElo "2319"]
[BlackElo "2432"]
[Result "1/2-1/2"]
[Round "04"]
[TimeControl "180+1"]
[Date "2021.09.21"]
[WhiteClock "0:00:05"]
[BlackClock "0:00:11"]

1. e4 {[%clk 0:03:00]}  c5 {[%clk 0:02:59]} 2. Nf3 {[%clk 0:03:00]}  e6 {[%clk 0:03:00]} 3. d4 {[%clk 0:03:01]}  cxd4 {[%clk 0:03:00]} 4. Nxd4 {[%clk 0:03:02]}  Nc6 {[%clk 0:03:00]} 5. Nc3 {[%clk 0:02:59]}  a6 {[%clk 0:02:59]} 6. Be3 {[%clk 0:02:58]}  Nf6 {[%clk 0:02:59]} 7. Qd2 {[%clk 0:02:58]}  Qc7 {[%clk 0:02:57]} 8. O-O-O {[%clk 0:02:57]}  Be7 {[%clk 0:02:57]} 9. f4 {[%clk 0:02:57]}  O-O {[%clk 0:02:50]} 10. e5 {[%clk 0:02:56]}  Ng4 {[%clk 0:02:50]} 11. Bg1 {[%clk 0:02:56]}  d5 {[%clk 0:02:29]} 12. h3 {[%clk 0:02:46]}  Nh6 {[%clk 0:02:29]} 13. g4 {[%clk 0:02:47]}  f5 {[%clk 0:02:19]} 14. exf6 {[%clk 0:02:44]}  Bxf6 {[%clk 0:02:08]} 15. g5 {[%clk 0:02:38]}  Bxd4 {[%clk 0:02:06]} 16. gxh6 {[%clk 0:02:38]}  Qxf4 {[%clk 0:01:54]} 17. hxg7 {[%clk 0:02:36]}  Qxd2+ {[%clk 0:01:36]} 18. Kxd2 {[%clk 0:02:36]}  Bxg7 {[%clk 0:01:35]} 19. Kc1 {[%clk 0:02:20]}  Bd7 {[%clk 0:01:28]} 20. Bc5 {[%clk 0:02:19]}  Rf7 {[%clk 0:01:25]} 21. Bd3 {[%clk 0:02:19]}  Ne5 {[%clk 0:01:24]} 22. Be2 {[%clk 0:02:12]}  Ng6 {[%clk 0:01:21]} 23. Kb1 {[%clk 0:02:07]}  Rc8 {[%clk 0:01:14]} 24. Bd6 {[%clk 0:02:02]}  Be5 {[%clk 0:01:11]} 25. Bb4 {[%clk 0:01:55]}  Nf4 {[%clk 0:01:04]} 26. Rhg1+ {[%clk 0:01:53]}  Kh8 {[%clk 0:01:03]} 27. Bg4 {[%clk 0:01:52]}  h5 {[%clk 0:01:00]} 28. Rde1 {[%clk 0:01:36]}  Bxc3 {[%clk 0:00:53]} 29. Bxc3+ {[%clk 0:01:19]}  Rxc3 {[%clk 0:00:52]} 30. bxc3 {[%clk 0:01:15]}  hxg4 {[%clk 0:00:52]} 31. Rxg4 {[%clk 0:01:14]}  e5 {[%clk 0:00:25]} 32. Rh4+ {[%clk 0:01:12]}  Rh7 {[%clk 0:00:25]} 33. Rxh7+ {[%clk 0:01:12]}  Kxh7 {[%clk 0:00:26]} 34. Rxe5 {[%clk 0:01:13]}  Bc6 {[%clk 0:00:22]} 35. Rf5 {[%clk 0:01:06]}  Ne2 {[%clk 0:00:20]} 36. Kb2 {[%clk 0:01:06]}  Kg6 {[%clk 0:00:20]} 37. Rf2 {[%clk 0:01:05]}  Bb5 {[%clk 0:00:19]} 38. a4 {[%clk 0:00:49]}  Bc4 {[%clk 0:00:18]} 39. a5 {[%clk 0:00:49]}  Kg7 {[%clk 0:00:11]} 40. Rf3 {[%clk 0:00:46]}  Kg6 {[%clk 0:00:10]} 41. Ka3 {[%clk 0:00:46]}  Kg5 {[%clk 0:00:09]} 42. Kb4 {[%clk 0:00:44]}  Kh4 {[%clk 0:00:07]} 43. Kc5 {[%clk 0:00:29]}  Ng1 {[%clk 0:00:08]} 44. Rf4+ {[%clk 0:00:30]}  Kxh3 {[%clk 0:00:07]} 45. Kb6 {[%clk 0:00:18]}  Ne2 {[%clk 0:00:08]} 46. Rxc4 {[%clk 0:00:08]}  dxc4 {[%clk 0:00:09]} 47. Kxb7 {[%clk 0:00:08]}  Nxc3 {[%clk 0:00:09]} 48. Kxa6 {[%clk 0:00:08]}  Ne4 {[%clk 0:00:08]} 49. Kb6 {[%clk 0:00:08]}  c3 {[%clk 0:00:07]} 50. a6 {[%clk 0:00:08]}  Nd6 {[%clk 0:00:07]} 51. Kc7 {[%clk 0:00:07]}  Nb5+ {[%clk 0:00:07]} 52. Kc6 {[%clk 0:00:07]}  Na7+ {[%clk 0:00:07]} 53. Kb6 {[%clk 0:00:06]}  Nc8+ {[%clk 0:00:06]} 54. Kb7 {[%clk 0:00:03]}  Nd6+ {[%clk 0:00:06]} 55. Kc6 {[%clk 0:00:03]}  Nc8 {[%clk 0:00:06]} 56. Kc5 {[%clk 0:00:03]}  Kg4 {[%clk 0:00:06]} 57. Kc4 {[%clk 0:00:03]}  Kf5 {[%clk 0:00:06]} 58. Kxc3 {[%clk 0:00:02]}  Ke6 {[%clk 0:00:07]} 59. Kb4 {[%clk 0:00:03]}  Kd6 {[%clk 0:00:07]} 60. Kb5 {[%clk 0:00:03]}  Kc7 {[%clk 0:00:08]} 61. Kc5 {[%clk 0:00:02]}  Na7 {[%clk 0:00:08]} 62. c4 {[%clk 0:00:02]}  Nc6 {[%clk 0:00:09]} 63. Kb5 {[%clk 0:00:02]}  Na7+ {[%clk 0:00:09]} 64. Kc5 {[%clk 0:00:02]}  Nc6 {[%clk 0:00:10]} 65. Kd5 {[%clk 0:00:02]}  Na7 {[%clk 0:00:10]} 66. c5 {[%clk 0:00:02]}  Nc6 {[%clk 0:00:10]} 67. Kc4 {[%clk 0:00:02]}  Na7 {[%clk 0:00:10]} 68. Kb4 {[%clk 0:00:02]}  Kc6 {[%clk 0:00:10]} 69. Kc4 {[%clk 0:00:03]}  Kc7 {[%clk 0:00:10]} 70. Kb4 {[%clk 0:00:04]}  Nc8 {[%clk 0:00:11]} 71. Kc4 {[%clk 0:00:05]}  Kc6 {[%clk 0:00:11]} 72. Kb4 {[%clk 0:00:05]}  Na7 {[%clk 0:00:11]} 73. Kc4 {[%clk 0:00:05]}  Nb5 {[%clk 0:00:12]} 74. Kb4 {[%clk 0:00:05]}  Na7 {[%clk 0:00:11]} 1/2-1/2


[Site "https://www.chess.com"]

[Event "Titled Tuesday Blitz September 21 2021"]
[White "Andreikin, Dmitry"]
[Black "Dobrov, Vladimir"]
[WhiteFideId "4158814"]
[BlackFideId "4136594"]
[WhiteElo "3014"]
[BlackElo "2791"]
[Result "1-0"]
[Round "04"]
[TimeControl "180+1"]
[Date "2021.09.21"]
[WhiteClock "0:00:24"]
[BlackClock "0:00:01"]

1. d4 {[%clk 0:03:00]}  Nf6 {[%clk 0:02:58]} 2. c4 {[%clk 0:03:01]}  e6 {[%clk 0:02:58]} 3. Nc3 {[%clk 0:03:01]}  Bb4 {[%clk 0:02:58]} 4. Nf3 {[%clk 0:03:01]}  d5 {[%clk 0:02:50]} 5. Bg5 {[%clk 0:02:59]}  h6 {[%clk 0:02:49]} 6. Bxf6 {[%clk 0:02:59]}  Qxf6 {[%clk 0:02:50]} 7. e3 {[%clk 0:02:59]}  O-O {[%clk 0:02:41]} 8. Rc1 {[%clk 0:02:58]}  c5 {[%clk 0:02:18]} 9. cxd5 {[%clk 0:02:55]}  exd5 {[%clk 0:02:06]} 10. dxc5 {[%clk 0:02:54]}  Be6 {[%clk 0:01:38]} 11. a3 {[%clk 0:02:45]}  Bxc5 {[%clk 0:01:37]} 12. Nxd5 {[%clk 0:02:39]}  Bxd5 {[%clk 0:01:33]} 13. Qxd5 {[%clk 0:02:40]}  Bb6 {[%clk 0:01:22]} 14. Bd3 {[%clk 0:02:14]}  Qxb2 {[%clk 0:01:16]} 15. O-O {[%clk 0:02:14]}  Nc6 {[%clk 0:01:16]} 16. a4 {[%clk 0:01:53]}  Rad8 {[%clk 0:01:14]} 17. Qe4 {[%clk 0:01:50]}  g6 {[%clk 0:01:11]} 18. Bb5 {[%clk 0:01:45]}  Rd6 {[%clk 0:00:47]} 19. Bxc6 {[%clk 0:01:41]}  Rxc6 {[%clk 0:00:47]} 20. Rxc6 {[%clk 0:01:41]}  bxc6 {[%clk 0:00:48]} 21. Qxc6 {[%clk 0:01:41]}  Rd8 {[%clk 0:00:48]} 22. h4 {[%clk 0:01:38]}  Kg7 {[%clk 0:00:47]} 23. h5 {[%clk 0:01:31]}  gxh5 {[%clk 0:00:44]} 24. Qe4 {[%clk 0:01:25]}  Qf6 {[%clk 0:00:43]} 25. Rc1 {[%clk 0:01:19]}  Qe6 {[%clk 0:00:41]} 26. Qxe6 {[%clk 0:01:09]}  fxe6 {[%clk 0:00:41]} 27. Ne5 {[%clk 0:01:10]}  Kf6 {[%clk 0:00:37]} 28. Nc6 {[%clk 0:01:08]}  Rd2 {[%clk 0:00:25]} 29. a5 {[%clk 0:01:01]}  Bc7 {[%clk 0:00:25]} 30. g3 {[%clk 0:00:56]}  a6 {[%clk 0:00:18]} 31. Nd4 {[%clk 0:00:53]}  Bxa5 {[%clk 0:00:15]} 32. Rc6 {[%clk 0:00:53]}  Kf7 {[%clk 0:00:05]} 33. Rxa6 {[%clk 0:00:50]}  Bc3 {[%clk 0:00:04]} 34. Nxe6 {[%clk 0:00:48]}  Be5 {[%clk 0:00:05]} 35. Kg2 {[%clk 0:00:38]}  Bd6 {[%clk 0:00:04]} 36. Nd4 {[%clk 0:00:36]}  Bf8 {[%clk 0:00:01]} 37. Ra7+ {[%clk 0:00:34]}  Kf6 {[%clk 0:00:01]} 38. Ra6+ {[%clk 0:00:35]}  Kf7 {[%clk 0:00:01]} 39. Nf5 {[%clk 0:00:34]}  Rc2 {[%clk 0:00:02]} 40. Nxh6+ {[%clk 0:00:34]}  Ke7 {[%clk 0:00:02]} 41. Nf5+ {[%clk 0:00:33]}  Kf7 {[%clk 0:00:03]} 42. Kf3 {[%clk 0:00:31]}  Rb2 {[%clk 0:00:03]} 43. Nh4 {[%clk 0:00:29]}  Bb4 {[%clk 0:00:03]} 44. Rb6 {[%clk 0:00:27]}  Bc3 {[%clk 0:00:02]} 45. Rxb2 {[%clk 0:00:27]}  Bxb2 {[%clk 0:00:03]} 46. Ke4 {[%clk 0:00:27]}  Bf6 {[%clk 0:00:02]} 47. f4 {[%clk 0:00:24]}  Ke6 {[%clk 0:00:01]} 48. Nf3 {[%clk 0:00:24]} 1-0


[Site "https://www.chess.com"]